fUSD/lending_fUSD_20250618
["ID","MTS","AMOUNT","RATE_DAILY","PERIOD"]
[366354554,1750205460699,-607.16,0.00016438,2]
[366354555,1750205460709,-607.16,0.00016438,2]
[366354556,1750205460718,-607.16,0.00016438,2]
[366354557,1750205460728,-490.0,0.00016438,2]
[366354558,1750205460737,-607.16,0.00016438,2]
[366354559,1750205460747,-490.0,0.00016438,2]
[366354560,1750205460756,-490.0,0.00016438,2]
[366354561,1750205460766,-607.16,0.00016438,2]
[366354562,1750205460775,-607.16,0.00016438,2]
[366354563,1750205460785,-607.16,0.00016438,2]
[366354564,1750205460794,-490.0,0.00016438,2]
[366354565,1750205460804,-1972.73,0.00016438,2]
[366354566,1750205460813,-607.16,0.00016438,2]
[366354567,1750205460823,-3736.8,0.00016438,2]
[366354568,1750205460833,-1384.7,0.00016438,2]
[366354569,1750205460843,-5088.76,0.00016438,2]
[366354570,1750205460852,-1862.58,0.00016438,2]
[366354571,1750205460862,-490.0,0.00016438,2]
[366354572,1750205460871,-490.0,0.00016438,2]
[366354573,1750205460881,-490.0,0.00016438,2]
[366354574,1750205460894,-490.0,0.00016438,2]
[366354575,1750205460903,-490.0,0.00016438,2]
[366354576,1750205460913,-1877.06,0.00016438,2]
[366354577,1750205460923,-2248.99,0.00016438,2]
[366354578,1750205460932,-1610.85,0.00016438,2]
[366354579,1750205460943,-490.0,0.00016438,2]
[366354580,1750205460954,-490.0,0.00016438,2]
[366354581,1750205460964,-490.0,0.00016438,2]
[366354582,1750205460974,-151.0,0.00016438,2]
[366354583,1750205460984,-490.0,0.00016438,2]
[366354584,1750205460993,-3631.68,0.00016438,2]
[366354585,1750205461003,-1023.53,0.00016438,2]
[366354586,1750205461012,-490.0,0.00016438,2]
[366354587,1750205461023,-490.0,0.00016438,2]
[366354588,1750205461032,-151.0,0.00016438,2]
[366354589,1750205461041,-151.0,0.00016438,2]
[366354590,1750205461051,-151.0,0.00016438,2]
[366354591,1750205461061,-490.0,0.00016438,2]
[366354592,1750205461071,-151.0,0.00016438,2]
[366354593,1750205461081,-2928.15,0.00016438,2]
[366354594,1750205461090,-490.0,0.00016438,2]
[366354595,1750205461099,-1234.76,0.00016438,2]
[366354596,1750205461109,-557.84,0.00016438,2]
[366354597,1750205461119,-151.0,0.00016438,2]
[366354598,1750205461128,-3300.07,0.00016438,2]
[366354599,1750205461138,-151.0,0.00016438,2]
[366354600,1750205461148,-625.15,0.00016438,2]
[366354601,1750205461158,-151.0,0.00016438,2]
[366354602,1750205461168,-490.0,0.00016438,2]
[366354603,1750205461178,-151.0,0.00016438,2]
[366354604,1750205461187,-151.0,0.00016438,2]
[366354605,1750205461197,-151.0,0.00016438,2]
[366354606,1750205461207,-770.66,0.00016438,2]
[366354607,1750205461217,-151.0,0.00016438,2]
[366354608,1750205461227,-542.86,0.00016438,2]
[366354609,1750205461237,-490.0,0.00016438,2]
[366354610,1750205461246,-151.0,0.00016438,2]
[366354611,1750205461256,-490.0,0.00016438,2]
[366354612,1750205461266,-256.967781,0.00016438,2]
[366354613,1750205461276,-490.0,0.00016438,2]
[366354614,1750205461285,-490.0,0.00016438,2]
[366354615,1750205461295,-490.0,0.00016438,2]
[366354616,1750205461302,-490.0,0.00016438,2]
[366354617,1750205461309,-723.87,0.00016438,2]
[366354618,1750205461318,-151.0,0.00016438,2]
[366354619,1750205461328,-151.0,0.00016438,2]
[366354620,1750205461337,-739.83,0.00016438,2]
[366354621,1750205461347,-490.0,0.00016438,2]
[366354622,1750205461356,-151.0,0.00016438,2]
[366354623,1750205461366,-2617.31,0.00016438,2]
[366354624,1750205461376,-2518.01,0.00016438,2]
[366354625,1750205461385,-1967.98,0.00016438,2]
[366354626,1750205461395,-238.65384,0.00016438,2]
[366354627,1750205461404,-5596.88,0.00016438,2]
[366354628,1750205461414,-490.0,0.00016438,2]
[366354629,1750205461424,-1125.87,0.00016438,2]
[366354630,1750205461433,-864.86,0.00016438,2]
[366354631,1750205461442,-350.0,0.00016438,2]
[366354632,1750205461452,-2191.57,0.00016438,2]
[366354633,1750205461462,-490.0,0.00016438,2]
[366354634,1750205461471,-13709.9,0.00016438,2]
[366354635,1750205461480,-6881.92,0.00016438,2]
[366354636,1750205461490,-7417.18,0.00016438,2]
[366354637,1750205461499,-490.0,0.00016438,2]
[366354638,1750205461512,-538.96,0.00016438,2]
[366354639,1750205461522,-605.53,0.00016438,2]
[366354640,1750205461531,-636.32,0.00016438,2]
[366354641,1750205461541,-490.0,0.00016438,2]
[366354642,1750205461550,-1299.65,0.00016438,2]
[366354643,1750205461560,-1229.68,0.00016438,2]
[366354644,1750205461572,-10374.51,0.00016438,2]
[366354645,1750205461582,-490.0,0.00016438,2]
[366354646,1750205461592,-2837.52,0.00016438,2]
[366354647,1750205461601,-8732.17,0.00016438,2]
[366354648,1750205461611,-490.0,0.00016438,2]
[366354649,1750205461621,-2613.28,0.00016438,2]
[366354650,1750205461631,-490.0,0.00016438,2]
[366354651,1750205461641,-1985.13,0.00016438,2]
[366354652,1750205461651,-7776.89,0.00016438,2]
[366354653,1750205461661,-1453.19,0.00016438,2]
[366354654,1750205461671,-433.8453311,0.00016438,2]
[366354655,1750205461682,-1172.84,0.00016438,2]
[366354656,1750205461692,-490.0,0.00016438,2]
[366354657,1750205461702,-3831.39,0.00016438,2]
[366354658,1750205461712,-486.84700768,0.00016438,2]
[366354659,1750205461722,-490.0,0.00016438,2]
[366354660,1750205461732,-3684.2,0.00016438,2]
[366354661,1750205461742,-619.44669054,0.00016438,2]
[366354662,1750205461752,-490.0,0.00016438,2]
[366354663,1750205461762,-490.0,0.00016438,2]
[366354664,1750205461772,-186.292219,0.00016438,2]
[366354665,1750205461782,-691.89,0.00016438,2]
[366354666,1750205461792,-490.0,0.00016438,2]
[366354667,1750205461802,-186.292219,0.00016438,2]
[366354668,1750205461812,-186.292219,0.00016438,2]
[366354669,1750205461822,-186.292219,0.00016438,2]
[366354670,1750205461833,-790.52,0.00016438,2]
[366354671,1750205461843,-2385.3,0.00016438,2]
[366354672,1750205461853,-1392.84,0.00016438,2]
[366354673,1750205461863,-186.292219,0.00016438,2]
[366354674,1750205461873,-763.49,0.00016438,2]
[366354675,1750205461883,-490.0,0.00016438,2]
[366354676,1750205461900,-2834.82,0.00016438,2]
[366354677,1750205461910,-1836.78,0.00016438,2]
[366354678,1750205461920,-186.292219,0.00016438,2]
[366354679,1750205461930,-421.88628798,0.00016438,2]
[366354680,1750205461942,-186.292219,0.00016438,2]
[366354681,1750205461951,-186.292219,0.00016438,2]
[366354682,1750205461962,-490.0,0.00016438,2]
[366354683,1750205461974,-490.0,0.00016438,2]
[366354684,1750205461984,-186.292219,0.00016438,2]
[366354685,1750205461994,-2612.22,0.00016438,2]
[366354686,1750205462004,-186.292218,0.00016438,2]
[366354687,1750205462014,-490.0,0.00016438,2]
[366354688,1750205462024,-628.17,0.00016438,2]
[366354689,1750205462034,-4808.76,0.00016438,2]
[366354690,1750205462044,-490.0,0.00016438,2]
[366354691,1750205462054,-1548.89,0.00016438,2]
[366354692,1750205462064,-765.43,0.00016438,2]
[366354693,1750205462074,-814.52,0.00016438,2]
[366354694,1750205462086,-490.0,0.00016438,2]
[366354695,1750205462095,-490.0,0.00016438,2]
[366354696,1750205462105,-460.0,0.00016438,2]
[366354697,1750205462115,-1020.15,0.00016438,2]
[366354698,1750205462125,-500.0,0.00016438,2]
[366354699,1750205462135,-632.8925803,0.00016438,2]
[366354700,1750205462145,-420.0,0.00016438,2]
[366354701,1750205462155,-4547.24,0.00016438,2]
[366354702,1750205462165,-4864.59,0.00016438,2]
[366354703,1750205462175,-1498.49,0.00016438,2]
[366354704,1750205462185,-490.0,0.00016438,2]
[366354705,1750205462195,-490.0,0.00016438,2]
[366354706,1750205462205,-490.0,0.00016438,2]
[366354707,1750205462216,-490.0,0.00016438,2]
[366354708,1750205462225,-460.0,0.00016438,2]
[366354709,1750205462235,-490.0,0.00016438,2]
[366354710,1750205462244,-808.56,0.00016438,2]
[366354711,1750205462254,-490.0,0.00016438,2]
[366354712,1750205462264,-7837.4,0.00016438,2]
[366354713,1750205462274,-490.0,0.00016438,2]
[366354714,1750205462283,-490.0,0.00016438,2]
[366354715,1750205462294,-490.0,0.00016438,2]
[366354716,1750205462304,-490.0,0.00016438,2]
[366354717,1750205462314,-860.1,0.00016438,2]
[366354718,1750205462324,-490.0,0.00016438,2]
[366354719,1750205462334,-490.0,0.00016438,2]
[366354720,1750205462345,-1064.63,0.00016438,2]
[366354721,1750205462354,-810.39,0.00016438,2]
[366354722,1750205462364,-490.0,0.00016438,2]
[366354723,1750205462375,-313.15349097,0.00016438,2]
[366354724,1750205462384,-490.0,0.00016438,2]
[366354725,1750205462395,-4134.92,0.00016438,2]
[366354726,1750205462405,-490.0,0.00016438,2]
[366354727,1750205462414,-1328.37,0.00016438,2]
[366354728,1750205462424,-1473.99,0.00016438,2]
[366354729,1750205462434,-3737.49,0.00016438,2]
[366354730,1750205462444,-490.0,0.00016438,2]
[366354731,1750205462454,-3362.88,0.00016438,2]
[366354732,1750205462464,-500.0,0.00016438,2]
[366354733,1750205462474,-1711.08,0.00016438,2]
[366354734,1750205462488,-490.0,0.00016438,2]
[366354735,1750205462498,-500.0,0.00016438,2]
[366354736,1750205462508,-500.0,0.00016438,2]
[366354737,1750205462518,-500.0,0.00016438,2]
[366354738,1750205462528,-500.0,0.00016438,2]
[366354739,1750205462538,-500.0,0.00016438,2]
[366354740,1750205462548,-500.0,0.00016438,2]
[366354741,1750205462558,-529.51,0.00016438,2]
[366354742,1750205462569,-490.0,0.00016438,2]
[366354743,1750205462579,-490.0,0.00016438,2]
[366354744,1750205462591,-490.0,0.00016438,2]
[366354745,1750205462602,-837.69,0.00016438,2]
[366354746,1750205462612,-490.0,0.00016438,2]
[366354747,1750205462622,-1378.55,0.00016438,2]
[366354748,1750205462632,-2399.91,0.00016438,2]
[366354749,1750205462642,-2048.66,0.00016438,2]
[366354750,1750205462652,-490.0,0.00016438,2]
[366354751,1750205462663,-490.0,0.00016438,2]
[366354752,1750205462673,-1389.52,0.00016438,2]
[366354753,1750205462683,-910.47,0.00016438,2]
[366354754,1750205462693,-490.0,0.00016438,2]
[366354755,1750205462703,-1885.0,0.00016438,2]
[366354756,1750205462713,-638.06,0.00016438,2]
[366354757,1750205462723,-490.0,0.00016438,2]
[366354758,1750205462733,-490.0,0.00016438,2]
[366354759,1750205462743,-490.0,0.00016438,2]
[366354760,1750205462898,-319.03748437,0.00016438,2]
[366354761,1750205462909,-760.09,0.00016438,2]
[366354762,1750205462921,-490.0,0.00016438,2]
[366354763,1750205462931,-1533.33,0.00016438,2]
[366354764,1750205462942,-490.0,0.00016438,2]
[366354765,1750205462952,-490.0,0.00016438,2]
[366354766,1750205462962,-490.0,0.00016438,2]
[366354767,1750205462972,-500.0,0.00016438,2]
[366354768,1750205462984,-1036.08,0.00016438,2]
[366354769,1750205462994,-506.39274703,0.00016438,2]
[366354770,1750205463005,-620.6,0.00016438,2]
[366354771,1750205463016,-4060.43,0.00016438,2]
[366354772,1750205463027,-1991.71,0.00016438,2]
[366354773,1750205463038,-1109.15,0.00016438,2]
[366354774,1750205463049,-490.0,0.00016438,2]
[366354775,1750205463061,-6625.45,0.00016438,2]
[366354776,1750205463071,-490.0,0.00016438,2]
[366354777,1750205463082,-151.0,0.00016438,2]
[366354778,1750205463093,-7518.05,0.00016438,2]
[366354779,1750205463104,-151.0,0.00016438,2]
[366354780,1750205463115,-490.0,0.00016438,2]
[366354781,1750205463126,-151.0,0.00016438,2]
[366354782,1750205463138,-1175.89,0.00016438,2]
[366354783,1750205463149,-151.0,0.00016438,2]
[366354784,1750205463160,-662.13,0.00016438,2]
[366354785,1750205463170,-151.0,0.00016438,2]
[366354786,1750205463181,-490.0,0.00016438,2]
[366354787,1750205463191,-1485.22,0.00016438,2]
[366354788,1750205463202,-2431.94,0.00016438,2]
[366354789,1750205463213,-199.331302,0.00016438,2]
[366354790,1750205463224,-490.0,0.00016438,2]
[366354791,1750205463234,-863.26,0.00016438,2]
[366354792,1750205463246,-490.0,0.00016438,2]
[366354793,1750205463257,-784.98,0.00016438,2]
[366354794,1750205463268,-541.33,0.00016438,2]
[366354795,1750205463279,-161.204742,0.00016438,2]
[366354796,1750205463289,-490.0,0.00016438,2]
[366354797,1750205463299,-161.204742,0.00016438,2]
[366354798,1750205463310,-161.204742,0.00016438,2]
[366354799,1750205463320,-161.204742,0.00016438,2]
[366354800,1750205463330,-490.0,0.00016438,2]
[366354801,1750205463343,-4175.82,0.00016438,2]
[366354802,1750205463353,-596.41,0.00016438,2]
[366354803,1750205463364,-161.204742,0.00016438,2]
[366354804,1750205463375,-1626.44,0.00016438,2]
[366354805,1750205463385,-1005.0,0.00016438,2]
[366354806,1750205463395,-161.204742,0.00016438,2]
[366354807,1750205463406,-161.204742,0.00016438,2]
[366354808,1750205463417,-1391.59,0.00016438,2]
[366354809,1750205463428,-4866.88,0.00016438,2]
[366354810,1750205463439,-291.98145356,0.00016438,2]
[366354811,1750205463450,-161.204742,0.00016438,2]
[366354812,1750205463461,-490.0,0.00016438,2]
[366354813,1750205463472,-2240.83,0.00016438,2]
[366354814,1750205463483,-161.204742,0.00016438,2]
[366354815,1750205463494,-161.204745,0.00016438,2]
[366354816,1750205463505,-490.0,0.00016438,2]
[366354817,1750205463515,-490.0,0.00016438,2]
[366354818,1750205463526,-432.95505574,0.00016438,2]
[366354819,1750205463536,-2720.6,0.00016438,2]
[366354820,1750205463546,-490.0,0.00016438,2]
[366354821,1750205463556,-490.0,0.00016438,2]
[366354822,1750205463566,-151.0,0.00016438,2]
[366354823,1750205463577,-490.0,0.00016438,2]
[366354824,1750205463589,-151.0,0.00016438,2]
[366354825,1750205463599,-151.0,0.00016438,2]
[366354826,1750205463609,-151.0,0.00016438,2]
[366354827,1750205463620,-153.501351,0.00016438,2]
[366354828,1750205463630,-2721.99,0.00016438,2]
[366354829,1750205463640,-490.0,0.00016438,2]
[366354830,1750205463651,-1422.21,0.00016438,2]
[366354831,1750205463662,-1926.58,0.00016438,2]
[366354832,1750205463672,-586.78583182,0.00016438,2]
[366354833,1750205463683,-490.0,0.00016438,2]
[366354834,1750205463693,-490.0,0.00016438,2]
[366354835,1750205463703,-490.0,0.00016438,2]
[366354836,1750205463714,-490.0,0.00016438,2]
[366354837,1750205463724,-602.44,0.00016438,2]
[366354838,1750205463734,-490.0,0.00016438,2]
[366354839,1750205463745,-6185.37,0.00016438,2]
[366354840,1750205463756,-205.51,0.00016438,2]
[366354841,1750205463768,-620.0,0.00016447,2]
[366354842,1750205463778,-5100.73255717,0.00016452,2]
[366354843,1750205463789,-176.98865538,0.00016454,2]
[366354844,1750205463799,-431.66088299,0.00016457,2]
[366354845,1750205463810,-166.51,0.0001647,2]
[366354846,1750205463820,-500.0,0.00016473,2]
[366354847,1750205463830,-500.0,0.00016473,2]
[366354848,1750205463842,-500.0,0.00016473,2]
[366354849,1750205463852,-527.36708378,0.00016473,2]
[366354850,1750205463862,-500.0,0.00016473,2]
[366354851,1750205463873,-500.0,0.00016473,2]
[366354852,1750205463883,-500.0,0.00016473,2]
[366354853,1750205463895,-500.0,0.00016473,2]
[366354854,1750205463905,-498.97809826,0.00016473,2]
[366354855,1750205463915,-500.0,0.00016473,2]
[366354856,1750205463926,-500.0,0.00016473,2]
[366354857,1750205463938,-500.0,0.00016473,2]
[366354858,1750205463948,-500.0,0.00016473,2]
[366354859,1750205463958,-500.0,0.00016473,2]
[366354860,1750205463969,-500.0,0.00016473,2]
[366354861,1750205463980,-500.0,0.00016473,2]
[366354862,1750205463989,-500.0,0.00016473,2]
[366354863,1750205463999,-520.29261185,0.00016473,2]
[366354864,1750205464010,-500.0,0.00016473,2]
[366354865,1750205464020,-500.0,0.00016473,2]
[366354866,1750205464030,-500.0,0.00016473,2]
[366354867,1750205464041,-512.9654609,0.00016473,2]
[366354868,1750205464051,-500.0,0.00016473,2]
[366354869,1750205464061,-500.0,0.00016473,2]
[366354870,1750205464071,-500.0,0.00016473,2]
[366354871,1750205464082,-200.0,0.00016477,2]
[366354872,1750205464093,-2328.74,0.00016487,2]
[366354873,1750205464102,-1164.87,0.00016487,2]
[366354874,1750205464113,-1164.87,0.00016487,2]
[366354875,1750205464123,-1164.87,0.00016487,2]
[366354876,1750205464133,-1164.87,0.00016487,2]
[366354877,1750205464143,-608.93,0.00016487,2]
[366354878,1750205464153,-1337.858,0.000165,2]
[366354879,1750205464164,-431.66088299,0.00016502,2]
[366354880,1750205464174,-176.98865538,0.00016548,2]
[366354881,1750205464184,-3204.40829004,0.00016565,2]
[366354882,1750205464195,-500.0,0.0001657,2]
[366354883,1750205464205,-523.95482433,0.0001657,2]
[366354884,1750205464216,-1000.0,0.0001657,2]
[366354885,1750205464227,-1000.0,0.0001657,2]
[366354886,1750205464238,-1401.56032105,0.0001657,2]
[366354887,1750205464248,-500.0,0.0001657,2]
[366354888,1750205464259,-1000.0,0.0001657,2]
[366354889,1750205464270,-876.920483,0.00016585,2]
[366354890,1750205464281,-5100.73255717,0.0001659,2]
[366354891,1750205464291,-1001.6933,0.00016599,2]
[366354892,1750205464301,-826.16,0.000166,2]
[366354893,1750205464311,-1900.0,0.000166,6]
[366354894,1750205464320,-500.0,0.00016601,2]
[366354895,1750205464332,-500.0,0.00016601,2]
[366354896,1750205464343,-500.0,0.00016601,2]
[366354897,1750205464353,-500.0,0.00016601,2]
[366354898,1750205464363,-500.0,0.00016601,2]
[366354899,1750205464372,-607.16,0.00016601,2]
[366354900,1750205464383,-607.16,0.00016601,2]
[366354901,1750205464393,-607.16,0.00016601,2]
[366354902,1750205464404,-607.16,0.00016601,2]
[366354903,1750205464414,-607.16,0.00016601,2]
[366354904,1750205464425,-300.0,0.00016601,2]
[366354905,1750205464436,-300.0,0.00016601,2]
[366354906,1750205464446,-300.0,0.00016601,2]
[366354907,1750205464457,-300.0,0.00016601,2]
[366354908,1750205464468,-300.0,0.00016601,2]
[366354909,1750205464478,-300.0,0.00016601,2]
[366354910,1750205464488,-300.0,0.00016601,2]
[366354911,1750205464499,-201.000455,0.00016602,2]
[366354912,1750205464509,-210.374909,0.00016602,2]
[366354913,1750205464519,-210.374909,0.00016602,2]
[366354914,1750205464529,-210.374909,0.00016602,2]
[366354915,1750205464540,-210.374909,0.00016602,2]
[366354916,1750205464550,-210.374909,0.00016602,2]
[366354917,1750205464560,-210.374909,0.00016602,2]
[366354918,1750205464571,-210.374909,0.00016602,2]
[366354919,1750205464580,-210.374909,0.00016602,2]
[366354920,1750205464593,-2435.515444,0.00016602,2]
[366354921,1750205464603,-158.840487,0.00016602,2]
[366354922,1750205464613,-158.840487,0.00016602,2]
[366354923,1750205464623,-158.840487,0.00016602,2]
[366354924,1750205464634,-158.840487,0.00016602,2]
[366354925,1750205464644,-158.840487,0.00016602,2]
[366354926,1750205464654,-158.840487,0.00016602,2]
[366354927,1750205464664,-158.840487,0.00016602,2]
[366354928,1750205464674,-158.840487,0.00016602,2]
[366354929,1750205464684,-153.755104,0.00016602,2]
[366354930,1750205464694,-153.755104,0.00016602,2]
[366354931,1750205464704,-153.755104,0.00016602,2]
[366354932,1750205464715,-153.755104,0.00016602,2]
[366354933,1750205464725,-153.755104,0.00016602,2]
[366354934,1750205464736,-153.755104,0.00016602,2]
[366354935,1750205464745,-153.755104,0.00016602,2]
[366354936,1750205464756,-153.755104,0.00016602,2]
[366354937,1750205464766,-151.0,0.00016602,2]
[366354938,1750205464776,-238.140298,0.00016602,2]
[366354939,1750205464787,-219.052276,0.00016602,2]
[366354940,1750205464796,-490.0,0.00016602,2]
[366354941,1750205464806,-490.0,0.00016602,2]
[366354942,1750205464816,-156.564162,0.00016602,2]
[366354943,1750205464826,-490.0,0.00016602,2]
[366354944,1750205464837,-490.0,0.00016602,2]
[366354945,1750205464847,-201.98281169,0.00016602,2]
[366354946,1750205464857,-490.0,0.00016602,2]
[366354947,1750205464867,-490.0,0.00016602,2]
[366354948,1750205464878,-256.13193686,0.00016602,2]
[366354949,1750205464890,-490.0,0.00016602,2]
[366354950,1750205464901,-490.0,0.00016602,2]
[366354951,1750205464911,-159.94056743,0.00016602,2]
[366354952,1750205464921,-490.0,0.00016602,2]
[366354953,1750205464931,-206.72305191,0.00016602,2]
[366354954,1750205464941,-462.39530907,0.00016602,2]
[366354955,1750205464951,-490.0,0.00016602,2]
[366354956,1750205464961,-490.0,0.00016602,2]
[366354957,1750205464974,-601.73129475,0.00016602,2]
[366354958,1750205464985,-492.96201088,0.00016602,2]
[366354959,1750205464995,-192.22,0.00016602,2]
[366354960,1750205465006,-490.0,0.00016602,2]
[366354961,1750205465017,-490.0,0.00016602,2]
[366354962,1750205465029,-490.0,0.00016602,2]
[366354963,1750205465039,-723.88,0.00016602,2]
[366354964,1750205465049,-490.0,0.00016602,2]
[366354965,1750205465060,-490.0,0.00016602,2]
[366354966,1750205465070,-490.0,0.00016602,2]
[366354967,1750205465080,-490.0,0.00016602,2]
[366354968,1750205465091,-490.0,0.00016602,2]
[366354969,1750205465101,-490.0,0.00016602,2]
[366354970,1750205465111,-707.17,0.00016602,2]
[366354971,1750205465121,-490.0,0.00016602,2]
[366354972,1750205465131,-490.0,0.00016602,2]
[366354973,1750205465141,-490.0,0.00016602,2]
[366354974,1750205465151,-665.62,0.00016602,2]
[366354975,1750205465164,-744.42,0.00016602,2]
[366354976,1750205465174,-490.0,0.00016602,2]
[366354977,1750205465184,-490.0,0.00016602,2]
[366354978,1750205465194,-490.0,0.00016602,2]
[366354979,1750205465204,-490.0,0.00016602,2]
[366354980,1750205465214,-490.0,0.00016602,2]
[366354981,1750205465225,-192.53347587,0.00016602,2]
[366354982,1750205465236,-380.0,0.00016602,2]
[366354983,1750205465246,-490.0,0.00016602,2]
[366354984,1750205465256,-490.0,0.00016602,2]
[366354985,1750205465266,-659.83,0.00016602,2]
[366354986,1750205465277,-490.0,0.00016602,2]
[366354987,1750205465287,-490.0,0.00016602,2]
[366354988,1750205465296,-490.0,0.00016602,2]
[366354989,1750205465306,-490.0,0.00016602,2]
[366354990,1750205465316,-1552.57,0.00016602,2]
[366354991,1750205465665,-490.0,0.00016602,2]
[366354992,1750205465676,-490.0,0.00016602,2]
[366354993,1750205465686,-490.0,0.00016602,2]
[366354994,1750205465695,-490.0,0.00016602,2]
[366354995,1750205465706,-490.0,0.00016602,2]
[366354996,1750205465715,-492.32,0.00016602,2]
[366354997,1750205465725,-490.0,0.00016602,2]
[366354998,1750205465734,-526.08,0.00016602,2]
[366354999,1750205465744,-490.0,0.00016602,2]
[366355000,1750205465754,-487.1339557,0.00016602,2]
[366355001,1750205465763,-490.0,0.00016602,2]
[366355002,1750205465774,-490.0,0.00016602,2]
[366355003,1750205465784,-490.0,0.00016602,2]
[366355004,1750205465794,-490.0,0.00016602,2]
[366355005,1750205465804,-490.0,0.00016602,2]
[366355006,1750205465814,-490.0,0.00016602,2]
[366355007,1750205465824,-490.0,0.00016602,2]
[366355008,1750205465834,-508.63,0.00016602,2]
[366355009,1750205465845,-965.97,0.00016602,2]
[366355010,1750205465854,-490.0,0.00016602,2]
[366355011,1750205465865,-490.0,0.00016602,2]
[366355012,1750205465875,-490.0,0.00016602,2]
[366355013,1750205465885,-490.0,0.00016602,2]
[366355014,1750205465896,-490.0,0.00016602,2]
[366355015,1750205465907,-490.0,0.00016602,2]
[366355016,1750205465920,-701.09,0.00016602,2]
[366355017,1750205465929,-490.0,0.00016602,2]
[366355018,1750205465942,-490.0,0.00016602,2]
[366355019,1750205465952,-490.0,0.00016602,2]
[366355020,1750205465963,-490.0,0.00016602,2]
[366355021,1750205465973,-233.78,0.00016602,2]
[366355022,1750205465984,-490.0,0.00016602,2]
[366355023,1750205465994,-490.0,0.00016602,2]
[366355024,1750205466004,-490.0,0.00016602,2]
[366355025,1750205466014,-490.0,0.00016602,2]
[366355026,1750205466024,-855.07,0.00016602,2]
[366355027,1750205466035,-490.0,0.00016602,2]
[366355028,1750205466045,-490.0,0.00016602,2]
[366355029,1750205466055,-490.0,0.00016602,2]
[366355030,1750205466065,-834.36,0.00016602,2]
[366355031,1750205466075,-490.0,0.00016602,2]
[366355032,1750205466084,-490.0,0.00016602,2]
[366355033,1750205466094,-490.0,0.00016602,2]
[366355034,1750205466105,-490.0,0.00016602,2]
[366355035,1750205466115,-490.0,0.00016602,2]
[366355036,1750205466125,-490.0,0.00016602,2]
[366355037,1750205466135,-633.5,0.00016602,2]
[366355038,1750205466146,-991.64,0.00016602,2]
[366355039,1750205466155,-719.27,0.00016602,2]
[366355040,1750205466165,-595.21,0.00016602,2]
[366355041,1750205466175,-490.0,0.00016602,2]
[366355042,1750205466185,-490.0,0.00016602,2]
[366355043,1750205466195,-490.0,0.00016602,2]
[366355044,1750205466204,-1220.36,0.00016602,2]
[366355045,1750205466215,-490.0,0.00016602,2]
[366355046,1750205466225,-490.0,0.00016602,2]
[366355047,1750205466235,-490.0,0.00016602,2]
[366355048,1750205466245,-490.0,0.00016602,2]
[366355049,1750205466255,-151.0,0.00016602,2]
[366355050,1750205466265,-151.0,0.00016602,2]
[366355051,1750205466275,-151.0,0.00016602,2]
[366355052,1750205466285,-151.0,0.00016602,2]
[366355053,1750205466294,-151.0,0.00016602,2]